bitfinex/quotes_ETHUSD_20230830
["timestamp","ask_amount","ask_price","bid_price","bid_amount"]
[1693411643346,7.96680377,1704.0,1703.7,6.22981863]
[1693411646340,5.86857,1704.0,1703.8,1.02002235]
[1693411646942,5.86857,1704.0,1703.9,0.36016551]
[1693411647514,5.86857,1704.0,1703.7,7.40852553]
[1693411647850,5.86857,1704.0,1703.8,1.02001867]
[1693411648344,10.26000706,1704.1,1703.8,1.02001867]
[1693411648554,7.87124,1704.1,1703.8,1.02001867]
[1693411648708,7.87124,1704.1,1703.8,1.63560088]
[1693411650221,13.73958,1704.1,1703.8,1.63560088]
[1693411650423,23.91040065,1704.1,1703.8,1.63560088]
[1693411650748,23.91040065,1704.1,1703.9,1.02001867]
[1693411650920,5.86888,1703.9,1703.8,0.61558221]
[1693411654273,5.86888,1703.9,1703.8,1.02001997]
[1693411654564,5.86888,1703.9,1703.7,0.61558221]
[1693411655261,7.84788,1703.9,1703.7,1.63560218]
[1693411655454,7.84788,1703.9,1703.8,1.02001997]
[1693411655968,18.93076966,1703.9,1703.6,0.61558221]
[1693411656156,20.35976966,1703.9,1703.6,1.635649]
[1693411656358,20.35976966,1703.9,1703.7,1.02006679]
[1693411656559,20.35976966,1703.9,1703.6,0.61558221]
[1693411656736,20.35976966,1703.9,1703.6,1.63564648]
[1693411656737,2.03597697,1703.8,1703.6,1.63564648]
[1693411656937,7.90525697,1703.8,1703.7,1.02006427]
[1693411657282,7.90525697,1703.8,1703.5,0.61558221]
[1693411657431,7.90525697,1703.8,1703.5,1.63568015]
[1693411658330,7.90525697,1703.8,1703.4,12.35640221]
[1693411658527,7.90525697,1703.8,1703.5,1.02015873]
[1693411658770,7.90525697,1703.8,1703.5,6.89040873]
[1693411658968,7.90525697,1703.8,1703.5,5.87025]
[1693411660033,0.7905257,1703.7,1703.4,12.35647221]
[1693411660236,0.7905257,1703.7,1703.4,11.74089]
[1693411661081,0.7905257,1703.7,1703.5,0.36138649]
[1693411662580,8.51971438,1703.8,1703.5,0.36138649]
[1693411663344,0.61445741,1703.8,1703.5,6.23154649]
[1693411663659,14.30270418,1703.9,1703.5,12.10180649]
[1693411663859,0.61445741,1703.8,1703.5,12.10180649]
[1693411664375,14.30270418,1703.9,1703.5,12.10180649]
[1693411664750,8.43382418,1703.9,1703.5,12.10180649]
[1693411664950,16.58565308,1703.9,1703.5,17.97206649]
[1693411665150,16.58565308,1703.9,1703.5,12.10180649]
[1693411665351,11.66697243,1703.9,1703.5,12.10180649]
[1693411665552,11.67073827,1703.9,1703.5,12.10180649]
[1693411665745,11.67073827,1703.9,1703.5,0.36138649]
[1693411665986,1.78303758,1703.8,1703.5,0.36138649]
[1693411666217,13.52180758,1703.8,1703.5,0.36138649]
[1693411666429,0.61596375,1703.7,1703.5,0.36138649]
[1693411666581,10.28300002,1703.7,1703.5,0.36138649]
[1693411666926,6.57429002,1703.7,1703.3,11.74161]
[1693411667220,4.61231989,1703.7,1703.3,17.61256]
[1693411667380,2.77686375,1703.7,1703.3,17.61256]
[1693411669197,8.64646375,1703.7,1703.3,5.87074]
[1693411669392,14.51606375,1703.7,1703.2,7.84439]
[1693411669610,14.51606375,1703.7,1703.2,7.84438]
[1693411669989,14.51606375,1703.7,1703.2,13.71568]
[1693411670190,20.38566375,1703.7,1703.2,10.11114829]
[1693411670414,20.38566375,1703.7,1703.2,1.9732]
[1693411670727,20.38566375,1703.7,1703.2,7.84443]
[1693411671203,20.38566375,1703.7,1703.2,13.71573]
[1693411673315,20.38566375,1703.7,1703.2,7.84443]
[1693411674594,0.61596375,1703.6,1703.2,1.9732]
[1693411674923,13.77873637,1703.6,1703.2,7.84446]
[1693411675111,2.098,1703.5,1703.2,7.84446]
[1693411675487,2.098,1703.5,1703.2,5.87126]
[1693411676121,2.098,1703.5,1703.3,0.36179608]
[1693411676530,2.098,1703.5,1703.3,6.23267608]
[1693411679233,7.90714,1703.6,1703.3,6.23267608]
[1693411679435,10.03904,1703.6,1703.3,6.23267608]
[1693411681357,12.216878,1703.6,1703.3,6.23267608]
[1693411681566,12.216878,1703.6,1703.3,0.36179608]
[1693411681862,19.515818,1703.6,1703.3,0.36179608]
[1693411682956,13.645878,1703.6,1703.3,0.36179608]
[1693411683121,12.216878,1703.6,1703.3,0.36179608]
[1693411683720,12.216878,1703.6,1703.3,6.23272608]
[1693411685058,12.216878,1703.6,1703.3,0.36179608]
[1693411685234,1.2216878,1703.5,1703.3,0.36179608]
[1693411686566,7.0919478,1703.5,1703.3,0.36179608]
[1693411686752,1.2216878,1703.5,1703.3,0.36179608]
[1693411686948,7.0919578,1703.5,1703.2,5.87116]
[1693411687263,7.0919578,1703.5,1703.1,12.7895593]
[1693411687422,12.9622278,1703.5,1703.1,6.9180693]
[1693411687625,2.0204,1703.4,1703.1,12.7897093]
[1693411691250,2.0204,1703.4,1703.2,0.36245731]
[1693411691451,2.0204,1703.4,1703.2,6.23366731]
[1693411693323,2.0204,1703.4,1703.2,0.36245731]
[1693411693951,8.80225978,1703.4,1703.2,0.36245731]
[1693411698435,2.93163978,1703.4,1703.2,0.36245731]
[1693411699299,24.84605043,1703.4,1703.2,0.36245731]
[1693411699448,25.46201418,1703.4,1703.2,0.36245731]
[1693411700020,24.84605043,1703.4,1703.2,0.36245731]
[1693411700148,5.35808569,1703.3,1703.2,0.36245731]
[1693411700352,17.09998569,1703.3,1703.2,0.36245731]
[1693411700545,18.52898569,1703.3,1703.2,0.36245731]
[1693411700950,17.09998569,1703.3,1703.2,0.36245731]
[1693411702786,2.48460504,1703.3,1703.2,0.36245731]
[1693411702973,14.67304978,1703.4,1703.2,0.36245731]
[1693411702974,2.0204,1703.4,1703.2,0.36245731]
[1693411703172,9.88985375,1703.6,1703.2,6.23364731]
[1693411703412,2.59076375,1703.6,1703.2,12.10494731]
[1693411703562,2.71236375,1703.6,1703.2,17.97624731]
[1693411703760,2.0964,1703.6,1703.2,12.10494731]
[1693411703969,2.0964,1703.6,1703.2,14.59438397]
[1693411704202,8.58229375,1703.6,1703.2,14.59438397]
[1693411704376,15.88122375,1703.6,1703.2,0.36245731]
[1693411704577,17.93352375,1703.6,1703.2,0.36245731]
[1693411704889,1.429,1703.5,1703.2,0.36245731]
[1693411705095,13.17022,1703.4,1703.2,0.36245731]
[1693411705293,1.317022,1703.3,1703.2,0.36245731]
[1693411705609,14.487922,1703.3,1703.2,0.36245731]
[1693411708490,13.058922,1703.3,1703.2,0.36245731]
[1693411709826,1.317022,1703.3,1703.2,0.36245731]
[1693411710110,12.36479065,1703.4,1703.2,0.36245731]
[1693411710315,10.93579065,1703.4,1703.2,0.36245731]
[1693411712314,8.06231,1703.4,1703.2,0.36245731]
[1693411712530,13.78577375,1703.5,1703.2,0.36245731]
[1693411712840,8.54668375,1703.5,1703.2,0.36245731]
[1693411713347,13.80112,1703.5,1703.2,0.36245731]
[1693411713922,15.23012,1703.5,1703.2,0.36245731]
[1693411714119,17.69935394,1703.5,1703.2,0.36245731]
[1693411714307,24.18571769,1703.5,1703.2,0.36245731]
[1693411715066,18.31531769,1703.5,1703.2,0.36245731]
[1693411720039,16.88631769,1703.5,1703.2,0.36245731]
[1693411720746,18.31531769,1703.5,1703.2,0.36245731]
[1693411723543,19.23926331,1703.5,1703.2,0.36245731]
[1693411723750,0.61596375,1703.4,1703.2,0.36245731]
[1693411723968,6.48670375,1703.4,1703.2,0.36245731]
[1693411726046,14.86844408,1703.4,1703.2,0.36245731]
[1693411728643,14.86844408,1703.4,1703.2,0.31245731]
[1693411728976,14.86844408,1703.4,1703.2,0.43696282]
[1693411731218,1.53990937,1703.4,1703.2,12.17955282]
[1693411731512,0.61596375,1703.4,1703.2,12.17955282]
[1693411733020,0.61596375,1703.4,1703.2,6.30825282]
[1693411733880,0.61596375,1703.4,1703.2,0.43696282]
[1693411734494,0.61596375,1703.4,1703.2,6.30826282]
[1693411741946,1.53990937,1703.4,1703.2,6.30826282]
[1693411742769,1.53990937,1703.4,1703.2,8.21804503]
[1693411742931,0.61596375,1703.4,1703.2,19.96064503]
[1693411743130,0.61596375,1703.5,1703.2,22.83412568]
[1693411743472,0.92394562,1703.6,1703.3,2.76341257]
[1693411743473,1.53990937,1703.6,1703.3,2.76341257]
[1693411743641,0.61596375,1703.6,1703.4,17.61183]
[1693411746266,1.53990937,1703.7,1703.4,17.61183]
[1693411748092,0.61596375,1703.7,1703.4,17.61183]
[1693411751096,0.61596375,1703.7,1703.5,0.4346964]
[1693411751283,0.61596375,1703.7,1703.6,5.86992]
[1693411752195,0.61596375,1703.7,1703.6,11.73984]
[1693411752406,0.61596375,1703.7,1703.6,13.54429064]
[1693411752965,0.61596375,1703.7,1703.6,19.41421064]
[1693411753389,0.61596375,1703.8,1703.6,19.41421064]
[1693411755794,3.57910937,1703.9,1703.6,19.41421064]
[1693411757808,2.65516375,1703.9,1703.6,19.41421064]
[1693411757968,3.57910937,1703.9,1703.7,13.68021106]
[1693411758471,2.65516375,1703.9,1703.7,13.68021106]
[1693411758897,2.65516375,1703.9,1703.7,19.54978106]
[1693411759820,2.0392,1703.9,1703.7,19.54978106]
[1693411763331,0.61596375,1704.1,1703.7,19.54978106]
[1693411763504,0.61596375,1704.1,1703.9,11.73776]
[1693411764425,1.53990937,1704.2,1703.9,11.73776]
[1693411764631,2.67096375,1704.2,1703.9,11.73776]
[1693411766227,2.67096375,1704.2,1704.0,0.4323755]
[1693411766441,2.67096375,1704.2,1704.0,12.1690055]
[1693411766633,2.055,1704.2,1704.0,6.3005755]
[1693411766806,2.66951731,1704.2,1704.0,6.3005755]
[1693411767330,2.055,1704.2,1704.0,6.3005755]
[1693411768236,2.055,1704.2,1704.0,12.1691155]
[1693411768449,2.055,1704.2,1704.0,6.3005755]
[1693411771605,3.484,1704.2,1704.0,0.4323755]
[1693411771774,5.27272073,1704.2,1704.0,0.4323755]
[1693411775822,11.14061073,1704.2,1704.0,0.4323755]
[1693411780122,1.429,1704.1,1704.0,0.4323755]
[1693411786611,13.1654,1704.1,1704.0,0.4323755]
[1693411786772,13.77991731,1704.1,1703.7,5.86939]
[1693411786948,4.99909173,1704.0,1703.7,5.86939]
[1693411787150,4.99909173,1704.0,1703.8,0.43256964]
[1693411787539,10.86764173,1704.0,1703.8,0.43256964]
[1693411787968,11.48215904,1704.0,1703.6,11.73949]
[1693411788537,17.35070904,1704.0,1703.5,8.14819765]
[1693411788737,3.1640709,1703.9,1703.5,12.20141765]
[1693411788971,9.0330909,1703.9,1703.5,12.20141765]
[1693411789237,11.1405909,1703.9,1703.5,11.74034]
[1693411789979,11.1405909,1703.9,1703.5,5.87008]
[1693411790179,2.0319,1703.8,1703.5,5.87008]
[1693411790563,2.0319,1703.8,1703.5,11.74034]
[1693411794504,3.4609,1703.8,1703.5,11.74034]
[1693411796310,3.4609,1703.8,1703.6,0.43302404]
[1693411796684,4.07541731,1703.8,1703.6,0.43302404]
[1693411796887,4.07541731,1703.8,1703.6,6.30294404]
[1693411799086,5.54629473,1703.8,1703.6,0.43302404]
[1693411799293,6.46807069,1703.8,1703.6,0.43302404]
[1693411799710,12.33731069,1703.8,1703.6,0.43302404]
[1693411800013,10.90831069,1703.8,1703.6,0.43302404]
[1693411800310,5.03907069,1703.8,1703.6,0.43302404]
[1693411800500,0.61451731,1703.7,1703.6,0.43302404]
[1693411801113,4.42455338,1703.8,1703.6,0.43302404]
[1693411801316,0.61606949,1703.7,1703.6,0.43302404]
[1693411806244,1.54017372,1703.8,1703.6,6.30294404]
[1693411806552,0.61606949,1703.8,1703.6,6.30294404]
[1693411808557,0.61606949,1703.8,1703.1,1.0466493]
[1693411808558,1.429,1703.5,1703.1,1.0466493]
[1693411808839,12.35810249,1703.3,1703.1,1.0466493]
[1693411809052,7.10711025,1703.2,1703.1,1.0466493]
[1693411809210,1.23581025,1703.2,1703.1,1.0466493]
[1693411809805,9.9805909,1703.2,1703.1,1.0466493]
[1693411810012,21.7231909,1703.2,1703.1,1.0466493]
[1693411811002,22.33905339,1703.2,1703.1,1.0466493]
[1693411811201,21.7231909,1703.2,1703.1,1.0466493]
[1693411816135,21.7231909,1703.2,1703.1,1.38958219]
[1693411818877,23.1521909,1703.2,1703.1,1.38958219]
[1693411819085,26.1521909,1703.2,1703.1,1.38958219]
[1693411819453,26.1521909,1703.2,1703.1,1.0466493]
[1693411819973,26.1521909,1703.2,1703.1,1.38958219]
[1693411823144,4.429,1703.0,1702.8,0.0092029]
[1693411823446,20.49047065,1702.9,1702.8,0.0092029]
[1693411823648,21.91947065,1702.9,1702.8,0.0092029]
[1693411824480,24.91947065,1702.9,1702.8,0.0092029]
[1693411825056,26.96647065,1702.9,1702.8,0.0092029]
[1693411825259,31.10754674,1702.9,1702.8,0.0092029]
[1693411830248,31.10754674,1702.9,1702.3,0.335149]
[1693411830249,3.0,1702.8,1702.3,0.335149]
[1693411830458,1.429,1702.5,1702.3,0.335149]
[1693411830851,13.17671,1702.5,1702.4,0.29740897]
[1693411831251,13.17671,1702.5,1702.3,0.335149]
[1693411831480,13.17671,1702.5,1702.3,0.285149]
[1693411831815,19.05068,1702.5,1702.3,0.285149]
[1693411832406,19.05068,1702.5,1702.4,0.00599131]
[1693411832621,20.28649025,1702.5,1702.4,0.00599131]
[1693411833313,20.28649025,1702.5,1702.3,0.285149]
[1693411834268,20.28649025,1702.5,1702.4,0.00603859]
[1693411835419,20.28649025,1702.5,1702.3,0.235149]
[1693411835568,1.429,1702.4,1702.3,0.235149]
[1693411835781,13.17712,1702.4,1702.3,0.235149]
[1693411836302,13.17712,1702.4,1702.3,0.24119473]
[1693411836892,11.74812,1702.4,1702.3,0.24119473]
[1693411837094,5.87406,1702.4,1702.3,0.24119473]
[1693411837498,11.74812,1702.4,1702.3,0.24119473]
[1693411838013,5.87406,1702.4,1702.3,0.24119473]
[1693411838911,11.74812,1702.4,1702.3,0.24119473]
[1693411839624,5.87406,1702.4,1702.3,0.24119473]
[1693411840590,7.30274,1702.5,1702.3,0.24119473]
[1693411840591,13.17668,1702.5,1702.3,0.24119473]
[1693411841227,13.17668,1702.5,1702.4,0.45370108]
[1693411841822,13.17668,1702.5,1702.3,0.24119473]
[1693411842335,20.955638,1702.5,1702.3,0.00604573]
[1693411843436,20.955638,1702.5,1702.1,1.9305]
[1693411844445,20.955638,1702.5,1702.2,0.00605287]
[1693411845432,11.74768,1702.5,1702.1,1.9305]
[1693411845638,5.87374,1702.5,1702.1,7.80557]
[1693411845808,5.87374,1702.5,1702.1,13.68066]
[1693411846335,5.87374,1702.5,1702.2,0.00605287]
[1693411846543,5.87374,1702.5,1702.2,5.88078287]
[1693411847358,5.87374,1702.5,1702.2,7.24941816]
[1693411847550,11.74702,1702.6,1702.2,7.24941816]
[1693411849362,19.04955,1702.6,1702.2,0.00605287]
[1693411849918,20.49403065,1702.6,1702.2,0.00605287]
[1693411850118,1.429,1702.4,1702.2,0.00605287]
[1693411850356,11.7488,1702.3,1702.1,1.9305]
[1693411850645,11.7488,1702.3,1701.9,7.28378766]
[1693411850847,11.7488,1702.3,1701.9,8.25265843]
[1693411851257,11.7488,1702.3,1702.0,0.00606714]
[1693411853754,17.6232,1702.3,1702.0,0.00606714]
[1693411855129,1.429,1702.2,1702.0,0.00606714]
[1693411855357,11.75018,1702.1,1702.0,0.00606714]
[1693411856120,11.75018,1702.1,1702.0,0.46025844]
[1693411856463,13.51269,1702.1,1702.0,0.4541913]
[1693411856673,7.6376,1702.1,1702.0,0.4541913]
[1693411856820,7.6376,1702.1,1701.8,2.65601831]
[1693411856821,11.75018,1702.1,1701.8,2.65601831]
[1693411857018,11.75018,1702.1,1701.9,1.02111964]
[1693411857256,17.62527,1702.1,1701.9,0.00585019]
[1693411858369,21.04197,1702.1,1701.9,0.00585019]
[1693411858572,13.855077,1702.0,1701.9,0.00585019]
[1693411858756,19.730517,1702.0,1701.9,0.00585019]
[1693411859672,13.855077,1702.0,1701.9,0.00585019]
[1693411859848,21.159517,1702.0,1701.9,0.00585019]
[1693411864382,13.17988,1702.0,1701.9,0.00585019]
[1693411864615,11.75088,1702.0,1701.9,0.00585019]
[1693411865473,17.62632,1702.0,1701.9,0.00585019]
[1693411866136,1.9877,1702.1,1701.9,0.00585019]
[1693411866273,5.87466,1702.3,1701.9,5.88163019]
[1693411866474,5.87477,1702.2,1701.9,12.94315521]
[1693411866673,5.87466,1702.3,1701.9,12.94315521]
[1693411866882,5.87465,1702.3,1701.9,12.94315521]
[1693411867273,11.74924,1702.3,1701.9,12.94315521]
[1693411867475,11.74924,1702.3,1702.0,7.16974552]
[1693411868407,11.87361,1702.6,1702.0,7.16974552]
[1693411868408,5.87357,1702.6,1702.1,0.00537288]
[1693411868606,2.04239907,1702.8,1702.3,17.62316]
[1693411868607,11.74584,1702.8,1702.3,17.62316]
[1693411868789,5.87302,1702.7,1702.3,17.62316]
[1693411868991,5.87302,1702.7,1702.3,14.241449]
[1693411869517,5.87286,1702.8,1702.3,20.115849]
[1693411869719,5.87254,1702.9,1702.3,20.115849]
[1693411869920,11.74506,1702.9,1702.4,0.48]
[1693411870225,11.74506,1702.9,1702.5,11.74719]
[1693411870418,11.74506,1702.9,1702.5,13.55731]
[1693411871226,11.74506,1702.9,1702.6,0.5231341]
[1693411871586,5.87253,1702.9,1702.6,6.3964941]
[1693411871940,12.35636907,1703.2,1702.6,18.1432341]
[1693411872081,11.74297,1703.2,1702.7,2.29432341]
[1693411872280,11.74297,1703.2,1702.8,11.745]
[1693411872475,5.87137,1703.2,1702.8,11.745]
[1693411872990,1.429,1703.1,1702.7,12.23106007]
[1693411873222,7.30089,1703.1,1702.7,11.75106007]
[1693411873379,11.74466,1702.9,1702.7,0.00533007]
[1693411875530,17.61699,1702.9,1702.7,0.00533007]
[1693411875680,5.87233,1702.9,1702.7,0.00533007]
[1693411875876,5.87233,1702.9,1702.7,5.87833007]
[1693411878028,5.87209,1703.0,1702.7,11.75135007]
[1693411878326,13.74656,1703.1,1702.7,13.56611849]
[1693411878832,7.87469,1703.1,1702.7,19.43913849]
[1693411878985,5.87169,1703.1,1702.7,19.43913849]
[1693411879187,5.87169,1703.1,1702.7,19.38913849]
[1693411879515,11.74356,1703.1,1702.8,5.87787293]
[1693411883335,11.74356,1703.1,1702.8,11.75055293]
[1693411884820,5.87169,1703.1,1702.8,11.75055293]
[1693411886232,5.87169,1703.1,1702.9,0.52169076]
[1693411886430,15.23852,1703.3,1702.9,6.39398076]
[1693411886631,15.23852,1703.3,1702.9,11.74462]
[1693411887201,15.23852,1703.3,1702.9,17.61695]
[1693411887545,15.23852,1703.3,1703.0,0.00510367]
[1693411887745,13.80952,1703.3,1703.0,5.87686367]
[1693411888053,2.0672,1703.3,1703.0,17.62084367]
[1693411888201,11.74154,1703.4,1703.0,17.62084367]
[1693411889844,5.87065,1703.4,1703.0,17.62084367]
[1693411893458,7.983029,1703.4,1703.0,17.62084367]
[1693411893758,1.429,1703.3,1703.0,11.74885367]
[1693411893966,7.30015,1703.3,1703.0,17.62084367]
[1693411896439,1.429,1703.3,1703.0,0.00510367]
[1693411896642,1.429,1703.3,1703.0,17.62084367]
[1693411896643,7.30015,1703.3,1703.0,17.62084367]
[1693411896971,10.72764,1703.3,1703.0,17.62084367]
[1693411897183,4.85649,1703.3,1703.0,17.62084367]
[1693411898343,3.5394,1703.3,1703.0,17.62084367]
[1693411900190,2.1104,1703.3,1703.0,17.62084367]
[1693411901259,2.1104,1703.3,1703.1,0.49726527]
[1693411901472,2.1104,1703.3,1703.1,12.24018527]
[1693411902299,2.1104,1703.3,1703.2,0.00508941]
[1693411902503,3.638502,1703.3,1703.2,0.00508941]
[1693411903200,1.9195,1703.6,1703.2,17.61898941]
[1693411903401,2.1676,1703.5,1703.2,17.61898941]
[1693411904280,1.429,1703.7,1703.2,17.61898941]
[1693411904483,3.4365,1703.7,1703.2,17.61898941]
[1693411904687,1.429,1703.7,1703.2,20.01774888]
[1693411907460,7.2986,1703.7,1703.2,20.01774888]
[1693411909504,1.429,1703.7,1703.3,0.48]
[1693411909664,15.33542,1703.8,1703.4,11.74086]
[1693411909865,11.787133,1703.8,1703.4,11.74086]
[1693411910060,8.03694,1703.8,1703.4,11.74086]
[1693411910377,2.1676,1703.8,1703.5,0.00506802]
[1693411910711,2.1676,1703.8,1703.6,11.73984]
[1693411911562,13.16643,1704.0,1703.6,11.73984]
[1693411911759,16.03991065,1704.0,1703.6,11.73984]
[1693411911959,18.44301071,1704.0,1703.6,11.73984]
[1693411912192,5.86862,1704.0,1703.6,17.60976]
[1693411912568,7.91332,1704.0,1703.6,17.60976]
[1693411914263,7.91332,1704.0,1703.7,0.00505377]
[1693411914463,7.91332,1704.0,1703.7,5.87441377]
[1693411916407,7.91332,1704.0,1703.8,0.49508738]
[1693411917202,13.77983,1704.0,1703.8,0.49508738]
[1693411918338,13.77983,1704.0,1703.9,0.00503952]
[1693411921181,7.91102,1704.0,1703.9,0.00503952]
[1693411922417,3.4737,1704.0,1703.9,0.00503952]
[1693411922731,11.07556,1704.0,1703.9,0.00503952]
[1693411925727,16.9441,1704.0,1703.9,0.00503952]
[1693411927929,17.55677854,1704.0,1703.9,0.00503952]
[1693411931127,17.55677854,1704.0,1703.9,0.49998234]
[1693411931320,23.42531854,1704.0,1703.9,0.49998234]
[1693411931525,23.42531854,1704.0,1703.9,0.00503952]
[1693411932294,23.42531854,1704.0,1703.6,11.73948]
[1693411932695,23.42531854,1704.0,1703.6,5.8697]
[1693411932896,23.42531854,1704.0,1703.7,0.49523195]
[1693411933421,23.42531854,1704.0,1703.8,0.00504665]
[1693411936027,24.34433636,1704.0,1703.8,0.00504665]
[1693411936940,7.34959283,1703.9,1703.8,0.00504665]
[1693411937127,24.95623283,1703.9,1703.8,0.00504665]
[1693411939109,31.26257211,1703.9,1703.8,0.00504665]
[1693411939308,31.56891138,1703.9,1703.7,0.49523195]
[1693411939533,5.65772399,1703.8,1703.0,7.7179]
[1693411939845,5.65772399,1703.8,1703.0,9.664131]
[1693411939846,13.17064,1703.4,1703.0,9.664131]
[1693411940046,11.74164,1703.4,1703.0,9.664131]
[1693411940246,13.79604,1703.4,1703.0,9.664131]
[1693411940435,15.22504,1703.4,1703.1,0.00470934]
[1693411941812,1.429,1703.3,1703.1,0.00470934]
[1693411942131,7.30001,1703.3,1703.1,0.00470934]
[1693411942338,13.17102,1703.3,1702.9,6.34027435]
[1693411942536,13.17102,1703.3,1702.9,0.46812435]
[1693411942537,19.04203,1703.3,1702.9,0.46812435]
[1693411942716,21.17803,1703.3,1702.8,7.71859]
[1693411942917,21.17803,1703.3,1702.8,13.59114]
[1693411943512,15.30702,1703.3,1702.8,19.46382]
[1693411943717,15.30702,1703.3,1702.9,11.74907361]
[1693411943947,15.30702,1703.3,1702.9,5.87677361]
[1693411944453,15.30696,1703.3,1702.9,5.87677361]
[1693411945044,15.30696,1703.3,1702.9,11.74910361]
[1693411945241,20.29820265,1703.3,1702.9,5.87677361]
[1693411945643,13.87796,1703.3,1702.9,5.87677361]
[1693411946041,19.74891,1703.3,1702.9,5.87677361]
[1693411946253,19.74891,1703.3,1703.0,0.49978133]
[1693411946962,13.8779,1703.3,1703.0,0.49978133]
[1693411947559,13.8779,1703.3,1703.1,0.00470934]
[1693411947757,11.7419,1703.3,1703.1,0.00470934]
[1693411947962,0.61435643,1703.5,1703.1,17.61948934]
[1693411948260,0.61435643,1703.5,1703.2,1.76194893]
[1693411948423,0.61435643,1703.5,1703.2,13.50426893]
[1693411948771,6.48468643,1703.5,1703.2,7.63298893]
[1693411948966,0.61435643,1703.5,1703.2,13.50428893]
[1693411949259,0.61435643,1703.5,1703.3,1.35042889]
[1693411949469,6.48472643,1703.5,1703.3,1.35042889]
[1693411950363,6.48472643,1703.5,1703.2,11.74218]
[1693411950558,0.61435643,1703.5,1703.2,11.74218]
[1693411950732,0.61435643,1703.5,1703.2,17.61348]
[1693411951428,0.61435643,1703.5,1703.3,11.74631508]
[1693411951628,0.61435643,1703.5,1703.3,13.50805059]
[1693411953791,1.53589107,1703.6,1703.3,13.50805059]
[1693411954094,1.53589107,1703.6,1703.4,0.52311758]
[1693411954392,1.53589107,1703.6,1703.4,6.39371758]
[1693411954700,1.53589107,1703.6,1703.5,0.63937176]
[1693411955054,0.92153464,1703.6,1703.5,0.63937176]
[1693411955448,0.92153464,1703.6,1703.5,0.64405259]
[1693411955947,1.53657008,1703.6,1703.5,0.64405259]
[1693411956146,0.92153464,1703.6,1703.5,0.64405259]
[1693411956391,0.61504674,1703.6,1703.5,0.64405259]
[1693411959097,6.48496674,1703.6,1703.5,0.00468083]
[1693411959304,7.40650138,1703.6,1703.5,0.00468083]
[1693411960309,7.40650138,1703.6,1703.3,13.50326551]
[1693411960496,0.61504674,1703.5,1703.3,13.50326551]
[1693411961423,0.61504674,1703.5,1703.4,0.52780554]
[1693411961705,0.61504674,1703.5,1703.4,6.39841554]
[1693411962312,0.56504674,1703.5,1703.4,6.39841554]
[1693411970411,0.56504674,1703.5,1703.4,0.52780554]
[1693411972016,0.56504674,1703.5,1703.4,6.39841554]
[1693411974605,1.48658138,1703.5,1703.4,6.39841554]
[1693411975118,0.56504674,1703.5,1703.4,6.39841554]
[1693411975352,1.48658138,1703.5,1703.4,6.39841554]
[1693411977258,0.56504674,1703.5,1703.4,6.39841554]
[1693411983463,1.48658138,1703.5,1703.4,6.39841554]
[1693411987388,0.92153464,1703.5,1703.4,6.39841554]
[1693411987588,1.53723848,1703.5,1703.4,6.39841554]
[1693411987759,0.92153464,1703.5,1703.4,6.39841554]
[1693411989988,0.92153464,1703.5,1703.4,0.52780554]
[1693411991184,0.92153464,1703.5,1703.4,6.39841554]
[1693411992456,2.15025863,1703.5,1703.4,6.39841554]
[1693411993242,2.15025863,1703.5,1703.4,0.52780554]
[1693411993603,1.22872399,1703.5,1703.4,0.52780554]
[1693412010096,1.22872399,1703.5,1703.4,6.39841554]
[1693412019449,1.23370937,1703.5,1703.4,6.39841554]
[1693412028137,1.23370937,1703.5,1703.4,0.52780554]
[1693412038908,2.158309,1703.5,1703.4,0.52780554]
[1693412041965,1.23370937,1703.5,1703.4,0.52780554]
[1693412042473,7.10396937,1703.5,1703.4,0.52780554]
[1693412042676,16.3288927,1703.5,1703.4,0.52780554]
[1693412042906,25.74205438,1703.5,1703.4,0.52780554]
[1693412043266,25.74205438,1703.5,1702.9,5.87219]
[1693412043468,25.74205438,1703.5,1702.7,0.61681459]
[1693412043469,1.429,1703.0,1702.7,0.61681459]
[1693412043707,1.429,1702.9,1702.7,6.89350899]
[1693412044005,7.30138,1702.9,1702.7,5.87298]
[1693412044360,1.429,1702.9,1702.8,0.00401689]
[1693412047997,13.2835026,1703.2,1702.8,7.05166658]
[1693412048280,12.35913504,1703.2,1702.8,7.05166658]
[1693412048812,13.78813504,1703.2,1702.8,7.05166658]
[1693412049017,13.78813504,1703.2,1702.8,5.87669689]
[1693412049183,7.30102,1703.0,1702.8,0.00401689]
[1693412049627,9.46622,1703.0,1702.8,0.00401689]
[1693412050119,15.33853,1703.0,1702.8,0.00401689]
[1693412051180,17.5211715,1703.0,1702.9,0.42906261]
[1693412051607,17.5211715,1703.0,1702.7,5.87282]
[1693412051914,17.5211715,1703.0,1702.9,0.42906261]
[1693412052279,17.5211715,1703.0,1702.9,0.00400976]
[1693412052884,15.33853,1703.0,1702.9,0.00400976]
[1693412053087,13.90953,1703.0,1702.9,0.00400976]
[1693412053292,13.90953,1703.0,1702.7,5.87282]
[1693412054418,13.90953,1703.0,1702.8,0.00401689]
[1693412058018,15.33853,1703.0,1702.8,0.00401689]
[1693412058227,17.459547,1703.0,1702.8,0.00401689]
[1693412061105,16.030547,1703.0,1702.8,0.00401689]
[1693412066255,16.030547,1703.0,1702.9,0.41266294]
[1693412066761,16.030547,1703.0,1702.8,0.00401689]
[1693412067051,13.90953,1703.0,1702.8,0.00401689]
[1693412067215,11.74433,1703.0,1702.8,0.00401689]
[1693412073630,13.17333,1703.0,1702.8,0.00401689]
[1693412075377,13.17333,1703.0,1702.3,7.37824459]
[1693412075378,24.07797065,1702.9,1702.3,7.37824459]
[1693412075678,24.07797065,1702.9,1702.3,5.8744]
[1693412075679,1.429,1702.7,1702.3,5.8744]
[1693412075844,5.87343,1702.6,1702.3,5.8744]
[1693412076174,13.90536,1702.6,1702.2,7.76214]
[1693412076405,8.03193,1702.6,1702.4,0.00388819]
[1693412076921,5.87343,1702.6,1702.4,0.00388819]
[1693412077067,2.016343,1702.5,1702.4,0.00388819]
[1693412077274,7.890053,1702.5,1702.4,0.00388819]
[1693412077509,7.890053,1702.5,1702.2,11.74934]
[1693412078167,2.016343,1702.5,1702.2,11.74934]
[1693412078369,1.429,1702.5,1702.3,0.00389533]
[1693412078719,15.31152,1702.6,1702.3,5.87810533]
[1693412078919,9.43797,1702.6,1702.3,5.87810533]
[1693412081180,8.00897,1702.6,1702.3,5.87810533]
[1693412081384,2.1356,1702.6,1702.4,1.00119729]
[1693412081585,11.74634,1702.7,1702.4,0.41338676]
[1693412081985,11.74634,1702.7,1702.3,11.75250533]